Cogmind - Beta 14 @@@ ROGUE MODE // 2024.09.24 @ 08:26:28 Player: rice Result: Destroyed by D-53 Grenadier with Mini Grenade Launcher Performance ------------- Evolutions (0) 0 Regions Visited (4) 800 Robots Destroyed (21) 105 Value Destroyed (528) 528 Prototype IDs (23) 460 Alien Tech Used (0) 0 Bonus (300) 300 TOTAL SCORE: 2193 Bonus ------- Aligned with FarCom 300 Cogmind --------- Core Integrity 0/250 Matter 271/300 Energy 250/250 System Corruption 0% Temperature Cool (0) Movement Treading (320) Ox2 Location -9/Mines Parts ------- > --- POWER (1) -------- Ion Engine > --- PROPULSION (2) --- Improved Treads > --- UTILITY (2) ------ High-capacity Storage Unit Terrain Scanner > --- WEAPON (2) ------- EM Pulse Gun > --- INVENTORY (20) --- Ion Engine Ion Engine Light Treads Light Treads Aluminum Leg Aluminum Leg Flight Unit Flight Unit Flight Unit Flight Unit Heat Sink Huge Storage Unit Sensor Array Core Shielding Skeleton Box Rocket Launcher Mining Laser Peak State ------------ > --- POWER ------------ Ion Engine > --- PROPULSION ------- Light Treads Improved Treads > --- UTILITY ---------- High-capacity Storage Unit Terrain Scanner > --- WEAPON ----------- EM Pulse Gun Assault Rifle > --- INVENTORY -------- Ion Engine Ion Engine Light Treads Light Treads Aluminum Leg Aluminum Leg Flight Unit Flight Unit Flight Unit Flight Unit Heat Sink Huge Storage Unit Sensor Array Core Shielding Skeleton Box Rocket Launcher Mining Laser [Rating: 10] Favorites ----------- Power Ion Engine Engine Ion Engine Propulsion Light Treads Treads Light Treads Leg Aluminum Leg Utility High-capacity Storage Unit Device Terrain Scanner Storage High-capacity Storage Unit Protection Core Shielding Weapon Assault Rifle Energy Gun EM Pulse Gun Ballistic Gun Assault Rifle Launcher Grenade Launcher Build | -11 -10 -10 -10 -9 ------- Run | Yrd Mat Min Exi Min Slots Evolved . | . . . . . Power . | . . . . . Propulsion . | . . . . . Utility . | . . . . . Weapon . | . . . . . Parts Attached 27 | 6 15 3 . 3 Power 3 | 1 2 . . . Engine 3 | 1 2 . . . Core . | . . . . . Reactor . | . . . . . Propulsion 8 | 2 5 . . 1 Treads 3 | . 2 . . 1 Leg 5 | 2 3 . . . Wheel . | . . . . . Hover . | . . . . . Flight . | . . . . . Utility 8 | 1 4 3 . . Device 3 | . 1 2 . . Storage 3 | 1 2 . . . Processor . | . . . . . Hackware . | . . . . . Protection 2 | . 1 1 . . Artifact . | . . . . . Weapon 8 | 2 4 . . 2 Energy Gun 1 | . . . . 1 Energy Cannon . | . . . . . Ballistic Gun 4 | 2 1 . . 1 Ballistic Cannon . | . . . . . Launcher 3 | . 3 . . . Special Weapon . | . . . . . Impact Weapon . | . . . . . Slashing Weapon . | . . . . . Piercing Weapon . | . . . . . Special Melee Weapon . | . . . . . Unidentified Prototypes . | . . . . . Parts Lost 5 | . . . . 5 Power . | . . . . . Propulsion 2 | . . . . 2 Utility . | . . . . . Weapon 3 | . . . . 3 Highest Loss Streak 5 | . . . . 5 To Critical Strikes . | . . . . . Average Slot Usage (%) 99 | . 99 100 100 95 Engine 14 | . 14 14 14 14 Treads 20 | . 14 28 28 26 Leg 7 | . 13 . . . Device 6 | . 1 11 14 14 Storage 14 | . 14 14 14 14 Protection 7 | . 12 2 . . Ballistic Gun 25 | . 24 28 28 24 Launcher 2 | . 3 . . . Peak Build Rating 10 | 6 8 8 9 10 Average Rating 7 | 4 7 8 8 8 On Entrance 6 | . 6 8 8 9 Naked Turns . | . . . . . Heaviest Build 51 | 12 51 50 50 50 Greatest Support 43 | 20 40 40 40 43 Greatest Overweight (x) 2 | . 1 1 1 2 Average Overweight (x) . | . . 1 1 1 Largest Inventory Capacity 20 | 8 20 20 20 20 Average Capacity 16 | 6 14 20 20 20 Most Carried 20 | 4 17 18 19 20 Average Carried 12 | 2 9 17 18 19 Final Capacity 20 | 8 20 20 20 20 Final Carried 19 | 4 17 18 19 17 Class Distribution -------------------- 97% | Mutant Dominant Class ---------------- Mutant | -10/Materials Mutant | -10/Mines Mutant | -10/Exiles Skirmisher | -9/Mines Resources | -11 -10 -10 -10 -9 ----------- Run | Yrd Mat Min Exi Min Matter Collected 860 | 234 557 69 . . Remotely . | . . . . . Salvage Created 633 | . 538 95 . . Parts 39 | . 35 4 . . Haulers Intercepted 1 | . 1 . . . Recyclers Shooed 2 | . 1 1 . . Parts Field Recycled . | . . . . . Retrieved Matter . | . . . . . Parts Self-Destructed . | . . . . . Prevented . | . . . . . Kills | -11 -10 -10 -10 -9 ------- Run | Yrd Mat Min Exi Min Combat Hostiles Destroyed 14 | . 12 2 . . Guns 9 | . 7 2 . . AOE 5 | . 5 . . . Classes Destroyed 8 | . 8 . . . Worker 1 | . 1 . . . Builder 1 | . 1 . . . Hauler 1 | . 1 . . . Recycler 1 | . 1 . . . Operator 1 | . 1 . . . Watcher 2 | . 2 . . . Swarmer 3 | . 3 . . . Grunt 11 | . 9 2 . . Best Kill Streak 5 | . 5 2 . . Combat Bots Only 3 | . 3 2 . . Max Kills in Single Turn 2 | . 2 1 . . Gunslinging . | . . . . . Exploded 2 | . 2 . . . Melee . | . . . . . Uniques/NPCs Destroyed . | . . . . . Combat | -11 -10 -10 -10 -9 -------- Run | Yrd Mat Min Exi Min Hostile Shots Fired 91 | . 59 12 . 20 Missed 33 | . 26 5 . 2 Damage Taken 1172 | . 440 86 . 646 Core 251 | . 66 11 . 174 Absorbed by Shields . | . . . . . Redirected to Shielding 17 | . 15 2 . . Regen/Repaired (Parts) 55 | . 55 . . . Core Remaining (%) 100 | 100 . . . . Volleys Fired 70 | . 60 4 . 6 Largest 2 | . 2 2 . 2 Hottest 60 | . 50 40 . 60 Shots Fired 129 | . 111 8 . 10 Gun 120 | . 102 8 . 10 Cannon . | . . . . . Launcher 9 | . 9 . . . Special . | . . . . . Kinetic 118 | . 102 8 . 8 Thermal . | . . . . . Explosive 9 | . 9 . . . Electromagnetic 2 | . . . . 2 Robot Hit Streak 9 | . 9 8 . 5 Robot Miss Streak 6 | . 6 . . 2 Penetration Max . | . . . . . Secondary Targets 1 | . . 1 . . Max Gunslinging Chain 1 | . . 1 . . Shots Hit Robots 73 | . 60 7 . 6 Core Hits 42 | . 35 4 . 3 Critical Kills 1 | . 1 . . . Critical Parts Destroyed . | . . . . . Critical Strikes 1 | . 1 . . . Destroy 1 | . 1 . . . Melee Attacks . | . . . . . Impact . | . . . . . Slashing . | . . . . . Piercing . | . . . . . Sneak Attacks . | . . . . . Combat Hostiles . | . . . . . Follow-up Attacks . | . . . . . Damage Inflicted 1570 | . 1399 91 . 80 Guns 949 | . 778 91 . 80 Cannons . | . . . . . Explosions 621 | . 621 . . . Melee . | . . . . . Ramming . | . . . . . Kinetic 939 | . 778 91 . 70 Thermal . | . . . . . Explosive 621 | . 621 . . . Electromagnetic 10 | . . . . 10 Impact . | . . . . . Slashing . | . . . . . Piercing . | . . . . . Highest Corruption . | . . . . . Average Corruption . | . . . . . Corruption Purged . | . . . . . Corruption Blocked . | . . . . . Overload Shots . | . . . . . Overflow Damage . | . . . . . Projectiles . | . . . . . Explosions . | . . . . . Melee . | . . . . . Knockbacks . | . . . . . Impact . | . . . . . Kinetic . | . . . . . Secondary . | . . . . . Self-Inflicted Damage 31 | . 31 . . . Shots 1 | . 1 . . . Rammed . | . . . . . Targets Rammed . | . . . . . Kicked . | . . . . . Crushed . | . . . . . Highest Temperature 20 | . 20 . . . Average Temperature 7 | . 7 . . . Received Heat Transfer 246 | . 195 51 . . Siege Activations . | . . . . . Robots Corrupted . | . . . . . Combat Hostiles . | . . . . . Parts Fried . | . . . . . Impact Corruptions . | . . . . . Robots Melted . | . . . . . Combat Hostiles . | . . . . . Parts Melted . | . . . . . Heat Transferred . | . . . . . Parts Sabotaged . | . . . . . Parts Stolen . | . . . . . Parts Stripped . | . . . . . Power Chain Reactions . | . . . . . Alert | -11 -10 -10 -10 -9 ------- Run | Yrd Mat Min Exi Min Peak Influence 165 | . 165 50 . 15 Initial . | . . . . . Average 39 | . 50 11 . . Maximum Alert Level . | . . . . . Low Security (%) 100 | 100 100 100 . 100 Level 1 . | . . . . . Level 2 . | . . . . . Level 3 . | . . . . . Level 4 . | . . . . . Level 5 . | . . . . . High Security . | . . . . . Max Security . | . . . . . Squads Dispatched 1 | . 1 . . . Investigation . | . . . . . Extermination . | . . . . . Reinforcement 1 | . 1 . . . Assault . | . . . . . Garrison . | . . . . . Intercept . | . . . . . Searches Triggered . | . . . . . Construction Impeded . | . . . . . Haulers Reinforced . | . . . . . Active Scanning Responses . | . . . . . Cargo Convoy Interrupts . | . . . . . Stealth | -11 -10 -10 -10 -9 --------- Run | Yrd Mat Min Exi Min Distress Signals . | . . . . . Communications Jammed . | . . . . . Distress Signals . | . . . . . Times Spotted 42 | . 26 2 . 14 Peak Tracking Total 9 | . 3 2 . 9 Tactical Retreats 1 | . 1 . . . Traps | -11 -10 -10 -10 -9 ------- Run | Yrd Mat Min Exi Min Traps Triggered 1 | . 1 . . . Indirectly . | . . . . . Trap Hack Attempts . | . . . . . Triggered . | . . . . . Disarmed 6 | . 6 . . . Reprogrammed . | . . . . . Reused . | . . . . . Traps Extracted . | . . . . . Installed . | . . . . . Triggered . | . . . . . Machines | -11 -10 -10 -10 -9 ---------- Run | Yrd Mat Min Exi Min Machines Disabled 1 | . 1 . . . Max in Single Turn 1 | . 1 . . . Machines Repaired . | . . . . . Machines Dismantled . | . . . . . Machines Sabotaged . | . . . . . Overloaded Fab Kills . | . . . . . Hacking | -11 -10 -10 -10 -9 --------- Run | Yrd Mat Min Exi Min Machines Accessed 10 | . 8 . 2 . Terminals 6 | . 6 . . . Fabricators . | . . . . . Repair Stations 1 | . 1 . . . Recycling Units 1 | . 1 . . . Scanalyzers . | . . . . . Garrison Access . | . . . . . Total Hacks 56 | . 32 . 24 . Successful 41 | . 17 . 24 . Failed 14 | . 14 . . . Catastrophic 1 | . 1 . . . Database Lockouts 1 | . 1 . . . Manual 19 | . 18 . 1 . Terminals 27 | . 27 . . . Fabricators . | . . . . . Repair Stations 3 | . 3 . . . Recycling Units 2 | . 2 . . . Scanalyzers . | . . . . . Garrison Access . | . . . . . Terminal Hacks 32 | . 8 . 24 . Record 23 | . . . 23 . Robot Analysis 2 | . 2 . . . Branch Access Points 1 | . 1 . . . Unreport Threat 2 | . 2 . . . Locate Traps 2 | . 2 . . . Disarm Traps 1 | . 1 . . . Derelict Proto ID Bank 1 | . . . 1 . Fabricator Hacks . | . . . . . Repair Station Hacks 3 | . 3 . . . Scan Component 2 | . 2 . . . Repair 1 | . 1 . . . Recycling Unit Hacks . | . . . . . Scanalyzer . | . . . . . Garrison Access Hacks . | . . . . . Unauthorized Hacks 6 | . 6 . . . Terminals 6 | . 6 . . . Botnet 5 | . 5 . . . Operators 1 | . 1 . . . Fabricators . | . . . . . Repair Stations . | . . . . . Recycling Units . | . . . . . Scanalyzers . | . . . . . Garrison Access . | . . . . . Data Cores Recovered . | . . . . . Used . | . . . . . Hacking Detections 7 | . 7 . . . Full Trace Events . | . . . . . Feedback Events . | . . . . . Feedback Blocked . | . . . . . Robot Schematics Acquired . | . . . . . Robots Built . | . . . . . Authchips . | . . . . . Time . | . . . . . Total Robot Build Rating . | . . . . . Part Schematics Acquired . | . . . . . Parts Built . | . . . . . Authchips . | . . . . . Time . | . . . . . Total Part Build Rating . | . . . . . Parts Repaired 1 | . 1 . . . Time 26 | . 26 . . . Parts Recycled . | . . . . . Recycled Matter . | . . . . . Retrieved Matter . | . . . . . Retrieved Components . | . . . . . Parts Scanalyzed . | . . . . . Part Schematics Acquired . | . . . . . Parts Damaged . | . . . . . Bothacking | -11 -10 -10 -10 -9 ------------ Run | Yrd Mat Min Exi Min Used RIF Installer . | . . . . . Robots Hacked . | . . . . . Non-combat . | . . . . . Combat . | . . . . . Robot Hacks Applied . | . . . . . Relay Couplers Released . | . . . . . Fabnet Peak Effective % . | . . . . . Robots Rewired . | . . . . . Allies Hacked . | . . . . . Hacks Repelled . | . . . . . Allies | -11 -10 -10 -10 -9 -------- Run | Yrd Mat Min Exi Min Total Allies . | . . . . . Largest Group . | . . . . . Highest-Rated Group . | . . . . . Highest-Rated Ally . | . . . . . Total Orders . | . . . . . Ally Attacks . | . . . . . Total Damage . | . . . . . Kills . | . . . . . Allies Corrupted . | . . . . . Allies Melted . | . . . . . Intel | -11 -10 -10 -10 -9 ------- Run | Yrd Mat Min Exi Min Robot Analysis Total 2 | . 2 . . . Derelict Logs Recovered 1 | . . 1 . . Drone Launches . | . . . . . Drone Recoveries . | . . . . . Exploration | -11 -10 -10 -10 -9 ------------- Run | Yrd Mat Min Exi Min Turns Passed 4611 | 76 2639 833 930 133 Spaces Moved 2121 | 54 1302 330 388 47 Core 2 | 2 . . . . Treads 1289 | . 524 330 388 47 Legs 830 | 52 778 . . . Wheels . | . . . . . Hover . | . . . . . Flight . | . . . . . Fastest Speed 50 | 50 120 240 240 240 Average Speed 195 | 117 172 240 240 243 Slowest Speed 320 | 120 240 240 240 320 Overloaded Moves . | . . . . . Propulsion Burnouts . | . . . . . Robots Hopped . | . . . . . Cave-ins Triggered . | . . . . . Exploration Rate (%) 51 | 4 96 48 88 22 Regions Visited 4 Branch Regions 3 Pre-discovered Areas 1 | . . . 1 . Known Exits Taken 1 | . 1 . . . Unknown Exits Taken 3 | 1 . 1 1 . Scrap Searched 3 | . . 1 . 2 Spaces Dug . | . . . . . Terrain Destroyed 47 | . 47 . . . Melee . | . . . . . Projectile . | . . . . . AOE 47 | . 47 . . . Terrain Rammed . | . . . . . Walls Destroyed . | . . . . . Machines Disabled . | . . . . . Actions | -11 -10 -10 -10 -9 --------- Run | Yrd Mat Min Exi Min Total 2461 | 63 1589 362 388 59 Wait 210 | . 185 25 . . Move 2117 | 53 1301 329 387 47 Hop . | . . . . . Pick Up 25 | 4 17 1 1 2 Fast Attach 7 | 6 1 . . . Attach 3 | . . . . 3 Detach . | . . . . . Swap 17 | . 14 3 . . Drop 12 | . 11 . . 1 Fire 70 | . 60 4 . 6 Melee . | . . . . . Ram . | . . . . . Kick . | . . . . . Crush . | . . . . . Escape Stasis . | . . . . . Rewire . | . . . . . Trap . | . . . . . Miscellaneous . | . . . . . Route ------- -11/Scrapyard -10/Materials (discovered 4 exits: [*Mat x3] / *Min) -10/Mines -10/Exiles -9/Mines History --------- Turn | Location | Event 6 | -11/Scrapyard | Discovered new exit (range 15) 77 | -11/Scrapyard | Entered Materials 309 | -10/Materials | Build established: Mutant 651 | -10/Materials | Discovered new exit (range 16) 835 | -10/Materials | Discovered new exit (range 12) 847 | -10/Materials | Discovered new exit (range 14) 1065 | -10/Materials | Central database locked down 1065 | -10/Materials | Identified exit to Mines 2183 | -10/Materials | Discovered new exit (range 8) 2332 | -10/Materials | Repaired Lgt. Treads 2716 | -10/Materials | Entered Mines 2760 | -10/Mines | Learned Materials stockpile data 3010 | -10/Mines | Deemed a non-threat by the Exiles lab entrance 3010 | -10/Mines | Discovered new exit (range 5) 3549 | -10/Mines | Entered Exiles 3605 | -10/Exiles | Met 8R-AWN 3643 | -10/Exiles | Met EX-HEX 3729 | -10/Exiles | Met EX-BIN 3763 | -10/Exiles | Aligned with FarCom system 3765 | -10/Exiles | Given EX-Vault access code 3830 | -10/Exiles | Opened EX-Vault 3840 | -10/Exiles | Found Skeleton Box 3891 | -10/Exiles | Warned to stay clear of 0b10 Research branches 3968 | -10/Exiles | Met EX-DEC 4046 | -10/Exiles | Visited The Gauntlet 4335 | -10/Exiles | Learned location of Zion (-7) 4450 | -10/Exiles | Discovered new exit (range 14) 4479 | -10/Exiles | Left Exiles lab with Skeleton Box 4479 | -10/Exiles | Entered Mines 4491 | -9/Mines | Met a Derelict bent on vengeance 4550 | -9/Mines | Assembled infested the area 4587 | -9/Mines | Core integrity fell below 50% 4607 | -9/Mines | Core integrity fell below 20% 4612 | -9/Mines | Destroyed by D-53 Grenadier with Mini Grenade Launcher Last Messages --------------- 04596_ as-24747 destroyed. 04597_ as-81179 destroyed. 04598_ The unstable cave ceiling collapses. 04598_ as-84011 destroyed. 04598_ T-07 Excavator destroyed. 04598_ as-02140 destroyed. 04601_ The unstable cave ceiling collapses. 04601_ as-34468 destroyed. 04601_ as-01838 destroyed. 04602_ as-24798 destroyed. 04604_ as-81109 destroyed. 04605_ as-09540 sneak attacks. 04605_ R-06 Scavenger destroyed. 04605_ as-28107 destroyed. 04606_ Assault Rifle destroyed. 04608_ as-09540 destroyed. 04608_ D-53 Grenadier destroyed. 04610_ The unstable cave ceiling collapses. 04610_ Lgt. Treads destroyed. 04612_ The unstable cave ceiling collapses. Map ----- +----------------------------------------------------+ | ??# #???????#???????????????????????????????? | | ??# ##???#??????????????????????????????????? | | ??# ##??????????????????????????????????????? | | ??# #????#??????????????????????????????????? | | ??# #??#??????????????????%?????????????????? | | ??# #????????????##?????? ??????????????????? | | ??## ####??#????????? ?#=[#??????????????????? | | ???# #??????#?????!?# # #??????????????????? | | ???# #????????????! # % ?#?????????????????? | | ???# #??????????Y? # ???????????????????? | | ?### #????????#?Y? ???????????????????? | | ?# #?######?????? % ? ??????????????????? | | ?# ### ##??????# % ??????????????????? | | ?# ## #####?? ???????????????????? | | ?## #### # ???????????????????? | | ??## # * #???????????????????? | | ???## %%= ##??????????????????? | | ????######## # d # ##?????????????????? | | ???????????## ## #?????????????????? | | ??#?????????######??# # ##???????s?????????? | | ????????#??????????## #?????#ss?????????? | | ???#???????????????# ##????????????????? | | ???????????#???????# #????????????????? | | ????????????#?????## ##### ????????? | | ?????????? # u ????????? | | ?????????? @ ????????? | | ?????????????#### ######### ?????????? | | ???????#????????# ##??????????????????? | | ??????????????#?## ## #???????????????????? | | ?????????????????####?## #??????????????????? | | ???????????????????????# ##?????????????????? | | ???????????????????????# ##??????????????????? | | ????????????????????#??#%$####???????????????????? | | ???????????????????????# #??????????????????????? | | ???????????????????????# #??????????????????????? | | ???????????????????????# ???????????????????????? | | ??????????????????????? ???????????????????????? | | ??????????????????????? ##???????????????????????? | | ??????????????????????? ?????????????????????????? | | ??????????????????????? ?????????????????????????? | | ???????????????????????#?????????????????????????? | | ?????????????????????????????????????????????????? | | ?????????????????????????????????????????????????? | | ?????????????????????????????????????????????????? | | ?????????????????????????????????????????????????? | | ?????????????????????????????????????????????????? | | ?????????????????????????????????????????????????? | | ?????????????????????????????????????????????????? | | ?????????????????????????????????????????????????? | | ?????????????????????????????????????????????????? | +----------------------------------------------------+ Best States ------------- Heat Dissipation 25 Energy Generation 10 Energy Capacity 250 Matter Stores 300 Matter Capacity 300 Sight Range 16 Robot Scan Range 14 Terrain Scan Range 14 Terrain Scan Density 10 Core Shielding 20 Evasion (%) 55 Recoil Reduction 2 Item Schematics ----------------- None Robot Schematics ------------------ None Fabricated ------------ Nothing Alien Tech Used ----------------- None Achievements -------------- None Challenges ------------ None Game ------ Seed VortexBiometalExpander Manual? 0 Play Time 00:18:23 Cumulative 50.1 hours Start 2024.09.24 @ 07:55:06 End 2024.09.24 @ 08:26:28 Sessions 1 Manual Loads 0 Difficulty Rogue Special Mode None Game No. 93 Rogue 93 Adventurer 0 Explorer 0 Win Type - Total 0 Types 0/0/0/0/0/0/0/0/0 Lore% 18 Gallery% 36 Achievement% 32 Wizard Run 0 Options --------- Layout 1 ASCII 0 Keyboard 1 Movement Numpad Keybinds 0 Fullscreen 1 Font 24/Smallcaps Map View 50x35 Zoom Use 0% Tactical HUD 1 Map Filters NONE Filters NONE Steam 1 RUN: 0b6d15b8-37df-46e3-ba2f-82590dac44bb